[Event "Late-Titled-Tuesday-Blitz-February-27-2024"]
[Site "Chess.com"]
[Date "2024.02.27"]
[Round "10"]
[White "JaackCamel"]
[Black "jcmesafischer"]
[Result "0-1"]
[WhiteElo "2233"]
[BlackElo "2360"]
[TimeControl "180+1"]
[EndTime "15:56:03 PST"]
[Termination "jcmesafischer won on time"]

1. d4 {[%clk 0:03:00.9]} 1... Nf6 {[%clk 0:02:58.5]} 2. c4 {[%clk 0:03:00.4]}
2... e6 {[%clk 0:02:58.4]} 3. Nc3 {[%clk 0:02:59.9]} 3... Bb4 {[%clk 0:02:57.5]}
4. Qc2 {[%clk 0:02:59.7]} 4... O-O {[%clk 0:02:50.8]} 5. a3 {[%clk 0:02:58.9]}
5... Bxc3+ {[%clk 0:02:50.4]} 6. Qxc3 {[%clk 0:02:58.8]} 6... d5 {[%clk
0:02:50.4]} 7. Nf3 {[%clk 0:02:56.9]} 7... c5 {[%clk 0:02:47.2]} 8. Bg5 {[%clk
0:02:51.7]} 8... cxd4 {[%clk 0:02:44.6]} 9. Nxd4 {[%clk 0:02:44.7]} 9... dxc4
{[%clk 0:02:44.6]} 10. e3 {[%clk 0:02:38.5]} 10... e5 {[%clk 0:02:30.5]} 11. Nf3
{[%clk 0:02:28.7]} 11... Nc6 {[%clk 0:02:02.8]} 12. Rd1 {[%clk 0:02:22.2]} 12...
Qe7 {[%clk 0:01:57.5]} 13. Bxc4 {[%clk 0:02:18.5]} 13... Bg4 {[%clk 0:01:53.2]}
14. h3 {[%clk 0:02:06]} 14... Bh5 {[%clk 0:01:53.2]} 15. g4 {[%clk 0:02:02.3]}
15... Bg6 {[%clk 0:01:53.2]} 16. O-O {[%clk 0:01:59.3]} 16... h6 {[%clk
0:01:41.3]} 17. Bh4 {[%clk 0:01:55.1]} 17... Rac8 {[%clk 0:01:17.2]} 18. b4
{[%clk 0:01:45.6]} 18... e4 {[%clk 0:01:14.8]} 19. Bxf6 {[%clk 0:01:08.7]} 19...
gxf6 {[%clk 0:01:08.7]} 20. Nh4 {[%clk 0:01:01.6]} 20... Kg7 {[%clk 0:00:59.2]}
21. Qb3 {[%clk 0:00:50.3]} 21... Ne5 {[%clk 0:00:50.4]} 22. Be2 {[%clk
0:00:45.2]} 22... Rc7 {[%clk 0:00:37.5]} 23. Kh1 {[%clk 0:00:42.9]} 23... Rfc8
{[%clk 0:00:36.8]} 24. Rg1 {[%clk 0:00:42.7]} 24... Rc2 {[%clk 0:00:30.9]} 25.
Nf5+ {[%clk 0:00:41.1]} 25... Bxf5 {[%clk 0:00:31.4]} 26. gxf5+ {[%clk 0:00:41]}
26... Kh8 {[%clk 0:00:31.8]} 27. Bh5 {[%clk 0:00:17.6]} 27... Rxf2 {[%clk
0:00:22]} 28. Qd5 {[%clk 0:00:16.6]} 28... Rcc2 {[%clk 0:00:09.9]} 29. Qd8+
{[%clk 0:00:13.9]} 29... Qxd8 {[%clk 0:00:08.6]} 30. Rxd8+ {[%clk 0:00:13.5]}
30... Kh7 {[%clk 0:00:09.2]} 31. Rgg8 {[%clk 0:00:05.7]} 31... Rf1+ {[%clk
0:00:06.2]} 32. Rg1 {[%clk 0:00:04]} 32... Rff2 {[%clk 0:00:05.5]} 33. Rgg8
{[%clk 0:00:04]} 33... Rf1+ {[%clk 0:00:05.7]} 34. Rg1 {[%clk 0:00:03.4]} 34...
Rxg1+ {[%clk 0:00:06.6]} 35. Kxg1 {[%clk 0:00:03.3]} 35... Nc4 {[%clk 0:00:06]}
36. Rd7 {[%clk 0:00:02.6]} 36... Nxe3 {[%clk 0:00:05.9]} 37. Rxf7+ {[%clk
0:00:02.5]} 37... Kh8 {[%clk 0:00:06.5]} 38. Rf8+ {[%clk 0:00:01.3]} 38... Kg7
{[%clk 0:00:06.5]} 39. Rf7+ {[%clk 0:00:01.6]} 39... Kg8 {[%clk 0:00:06.9]} 40.
Rxf6 {[%clk 0:00:01.4]} 40... Rg2+ {[%clk 0:00:06.7]} 0-1

[Event "Late-Titled-Tuesday-Blitz-February-27-2024"]
[Site "Chess.com"]
[Date "2024.02.27"]
[Round "10"]
[White "hansen"]
[Black "FabianoCaruana"]
[Result "0-1"]
[WhiteElo "2925"]
[BlackElo "3060"]
[TimeControl "180+1"]
[EndTime "15:56:04 PST"]
[Termination "FabianoCaruana won by resignation"]

1. e4 {[%clk 0:02:45.2]} 1... c5 {[%clk 0:03:00]} 2. Nf3 {[%clk 0:02:42.8]} 2...
Nc6 {[%clk 0:03:00.4]} 3. Bb5 {[%clk 0:02:42.4]} 3... g6 {[%clk 0:03:00.2]} 4.
Bxc6 {[%clk 0:02:41.2]} 4... dxc6 {[%clk 0:03:01.1]} 5. d3 {[%clk 0:02:40.9]}
5... Qc7 {[%clk 0:02:59.1]} 6. h3 {[%clk 0:02:39.5]} 6... e5 {[%clk 0:02:59.2]}
7. O-O {[%clk 0:02:38]} 7... Nf6 {[%clk 0:02:59.3]} 8. a3 {[%clk 0:02:37.9]}
8... Nh5 {[%clk 0:02:56.9]} 9. Qe1 {[%clk 0:02:33.9]} 9... a5 {[%clk 0:02:55.3]}
10. Nc3 {[%clk 0:02:30.6]} 10... a4 {[%clk 0:02:47.7]} 11. Be3 {[%clk
0:02:24.8]} 11... Bd6 {[%clk 0:02:45.1]} 12. Ne2 {[%clk 0:02:19.8]} 12... O-O
{[%clk 0:02:40.7]} 13. Qc3 {[%clk 0:02:18.2]} 13... b6 {[%clk 0:02:36.4]} 14.
Nd2 {[%clk 0:02:14.1]} 14... Be6 {[%clk 0:02:31.9]} 15. Nc4 {[%clk 0:02:10.1]}
15... Bxc4 {[%clk 0:02:31]} 16. dxc4 {[%clk 0:02:04.5]} 16... Nf4 {[%clk
0:02:30.2]} 17. Rfe1 {[%clk 0:01:44.7]} 17... Rad8 {[%clk 0:02:26]} 18. Rad1
{[%clk 0:01:40.5]} 18... Ne6 {[%clk 0:02:17.4]} 19. Rd3 {[%clk 0:01:24.3]} 19...
Nd4 {[%clk 0:02:12.4]} 20. Qd2 {[%clk 0:01:15.3]} 20... Be7 {[%clk 0:02:09.3]}
21. Qd1 {[%clk 0:01:06.1]} 21... Rfe8 {[%clk 0:01:58.5]} 22. Kh1 {[%clk
0:00:50.9]} 22... Qc8 {[%clk 0:01:55.5]} 23. Nc1 {[%clk 0:00:42.7]} 23... b5
{[%clk 0:01:48.3]} 24. cxb5 {[%clk 0:00:39.2]} 24... cxb5 {[%clk 0:01:49.2]} 25.
c3 {[%clk 0:00:33.1]} 25... c4 {[%clk 0:01:45.4]} 26. Rd2 {[%clk 0:00:21.2]}
26... Ne6 {[%clk 0:01:43.9]} 27. Na2 {[%clk 0:00:17.2]} 27... Rxd2 {[%clk
0:01:29.6]} 28. Qxd2 {[%clk 0:00:17.5]} 28... Rd8 {[%clk 0:01:30.2]} 29. Qe2
{[%clk 0:00:18.3]} 29... Qd7 {[%clk 0:01:27.7]} 30. Kg1 {[%clk 0:00:16.3]} 30...
Kg7 {[%clk 0:01:14.7]} 31. g3 {[%clk 0:00:15.2]} 31... Ng5 {[%clk 0:00:57.1]}
32. Bxg5 {[%clk 0:00:14.2]} 32... Bxg5 {[%clk 0:00:58]} 33. h4 {[%clk
0:00:13.3]} 33... Be7 {[%clk 0:00:58.5]} 34. Kg2 {[%clk 0:00:10.3]} 34... h5
{[%clk 0:00:53.5]} 35. Qe3 {[%clk 0:00:05.3]} 35... Qd2 {[%clk 0:00:50.1]} 36.
Qe2 {[%clk 0:00:05.6]} 36... Qxe2 {[%clk 0:00:33.3]} 37. Rxe2 {[%clk 0:00:05.9]}
37... Rd1 {[%clk 0:00:33.2]} 38. Rc2 {[%clk 0:00:04.8]} 38... f5 {[%clk
0:00:29.7]} 39. exf5 {[%clk 0:00:04.5]} 39... gxf5 {[%clk 0:00:30.6]} 40. Nc1
{[%clk 0:00:04.5]} 40... Bc5 {[%clk 0:00:27.3]} 41. Ne2 {[%clk 0:00:04.1]} 41...
Kf6 {[%clk 0:00:27.2]} 42. Ng1 {[%clk 0:00:03.9]} 42... e4 {[%clk 0:00:18.2]}
43. Nh3 {[%clk 0:00:02.9]} 43... e3 {[%clk 0:00:17.2]} 44. fxe3 {[%clk
0:00:01.5]} 44... Bxe3 {[%clk 0:00:18.1]} 45. Re2 {[%clk 0:00:02]} 45... Rd2
{[%clk 0:00:15.6]} 46. Nf4 {[%clk 0:00:01.7]} 46... Bxf4 {[%clk 0:00:14.7]} 0-1

[Event "Late-Titled-Tuesday-Blitz-February-27-2024"]
[Site "Chess.com"]
[Date "2024.02.27"]
[Round "10"]
[White "1977Ivan"]
[Black "Oleksandr_Bortnyk"]
[Result "0-1"]
[WhiteElo "2738"]
[BlackElo "3038"]
[TimeControl "180+1"]
[EndTime "15:56:05 PST"]
[Termination "Oleksandr_Bortnyk won by checkmate"]

1. d4 {[%clk 0:03:00.9]} 1... f6 {[%clk 0:02:54.4]} 2. e4 {[%clk 0:02:58.9]}
2... Kf7 {[%clk 0:02:55.3]} 3. Nf3 {[%clk 0:02:56.9]} 3... e6 {[%clk 0:02:53.5]}
4. Nc3 {[%clk 0:02:55.4]} 4... c6 {[%clk 0:02:51.4]} 5. Bd3 {[%clk 0:02:55.1]}
5... d5 {[%clk 0:02:50.5]} 6. O-O {[%clk 0:02:54.5]} 6... Bb4 {[%clk 0:02:49.7]}
7. Ne2 {[%clk 0:02:51.9]} 7... Ne7 {[%clk 0:02:45.7]} 8. c3 {[%clk 0:02:50]}
8... Ba5 {[%clk 0:02:45.4]} 9. h4 {[%clk 0:02:48.1]} 9... g6 {[%clk 0:02:38.6]}
10. Bh6 {[%clk 0:02:45.6]} 10... Bc7 {[%clk 0:02:35.1]} 11. Re1 {[%clk 0:02:39]}
11... dxe4 {[%clk 0:02:35.3]} 12. Bxe4 {[%clk 0:02:38.6]} 12... a5 {[%clk
0:02:34.2]} 13. Qd2 {[%clk 0:02:32.2]} 13... a4 {[%clk 0:02:34.4]} 14. Rad1
{[%clk 0:02:31.1]} 14... b5 {[%clk 0:02:29.8]} 15. Bf4 {[%clk 0:02:24.2]} 15...
Na6 {[%clk 0:02:25.6]} 16. Ng3 {[%clk 0:02:18.8]} 16... Bxf4 {[%clk 0:02:16.3]}
17. Qxf4 {[%clk 0:02:19.7]} 17... Kg7 {[%clk 0:02:17.1]} 18. h5 {[%clk
0:02:14.9]} 18... Rf8 {[%clk 0:02:05.7]} 19. h6+ {[%clk 0:01:30.9]} 19... Kg8
{[%clk 0:01:56.9]} 20. Re2 {[%clk 0:01:31.4]} 20... Qc7 {[%clk 0:01:47.3]} 21.
Qc1 {[%clk 0:01:26.6]} 21... Bd7 {[%clk 0:01:46.5]} 22. Rde1 {[%clk 0:01:26.5]}
22... Nd5 {[%clk 0:01:43]} 23. Bc2 {[%clk 0:01:20.9]} 23... a3 {[%clk
0:01:40.7]} 24. Bb3 {[%clk 0:01:15.3]} 24... axb2 {[%clk 0:01:40.3]} 25. Qxb2
{[%clk 0:01:16.2]} 25... Qa5 {[%clk 0:01:34.4]} 26. Ne4 {[%clk 0:01:15.4]} 26...
Qc7 {[%clk 0:01:09.8]} 27. g3 {[%clk 0:01:15.2]} 27... Kh8 {[%clk 0:01:04.8]}
28. Nh2 {[%clk 0:01:09.5]} 28... Rae8 {[%clk 0:00:58.1]} 29. c4 {[%clk
0:00:58.6]} 29... Nb6 {[%clk 0:00:28.8]} 30. c5 {[%clk 0:00:54.3]} 30... Nd5
{[%clk 0:00:27]} 31. Nd6 {[%clk 0:00:53]} 31... Ra8 {[%clk 0:00:26.2]} 32. Ng4
{[%clk 0:00:52.9]} 32... Nab4 {[%clk 0:00:24.9]} 33. Qd2 {[%clk 0:00:50.8]}
33... Qa5 {[%clk 0:00:24.4]} 34. Rxe6 {[%clk 0:00:47.3]} 34... Bxe6 {[%clk
0:00:22.1]} 35. Rxe6 {[%clk 0:00:48.2]} 35... Qc7 {[%clk 0:00:17.7]} 36. Qe2
{[%clk 0:00:42.6]} 36... Qd7 {[%clk 0:00:17.7]} 37. f4 {[%clk 0:00:36.3]} 37...
Nxa2 {[%clk 0:00:14.7]} 38. Bxa2 {[%clk 0:00:31.9]} 38... Rxa2 {[%clk
0:00:15.6]} 39. Qxa2 {[%clk 0:00:27.5]} 39... Qxe6 {[%clk 0:00:15.9]} 40. Qa7
{[%clk 0:00:27.4]} 40... Qe7 {[%clk 0:00:12]} 41. Qa1 {[%clk 0:00:15.6]} 41...
b4 {[%clk 0:00:12.1]} 42. f5 {[%clk 0:00:15.2]} 42... g5 {[%clk 0:00:10.9]} 43.
Kh2 {[%clk 0:00:14]} 43... Qe2+ {[%clk 0:00:07.4]} 44. Kh3 {[%clk 0:00:13.9]}
44... Qf3 {[%clk 0:00:07.3]} 45. Qa7 {[%clk 0:00:09.3]} 45... Nf4+ {[%clk
0:00:07]} 46. Kh2 {[%clk 0:00:09.1]} 46... Qg2# {[%clk 0:00:07.9]} 0-1

[Event "Late-Titled-Tuesday-Blitz-February-27-2024"]
[Site "Chess.com"]
[Date "2024.02.27"]
[Round "10"]
[White "bazar-wokzal"]
[Black "Narek_Ghimoyan"]
[Result "1-0"]
[WhiteElo "2615"]
[BlackElo "2420"]
[TimeControl "180+1"]
[EndTime "15:56:06 PST"]
[Termination "bazar-wokzal won by resignation"]

1. e4 {[%clk 0:03:00.9]} 1... c5 {[%clk 0:03:00]} 2. c3 {[%clk 0:02:57.9]} 2...
d5 {[%clk 0:02:57.4]} 3. exd5 {[%clk 0:02:58.1]} 3... Qxd5 {[%clk 0:02:58.3]} 4.
d4 {[%clk 0:02:58.4]} 4... g6 {[%clk 0:02:58.1]} 5. Nf3 {[%clk 0:02:57.7]} 5...
Bg7 {[%clk 0:02:57.1]} 6. c4 {[%clk 0:02:32.4]} 6... Qe4+ {[%clk 0:02:50.6]} 7.
Be3 {[%clk 0:02:29]} 7... cxd4 {[%clk 0:02:48.8]} 8. Nxd4 {[%clk 0:02:28.5]}
8... Nc6 {[%clk 0:02:38.6]} 9. Nc3 {[%clk 0:02:26.4]} 9... Qe5 {[%clk
0:02:30.7]} 10. Nxc6 {[%clk 0:02:18.1]} 10... bxc6 {[%clk 0:02:31.6]} 11. Be2
{[%clk 0:02:18.2]} 11... Nf6 {[%clk 0:02:31.2]} 12. O-O {[%clk 0:02:17.7]} 12...
O-O {[%clk 0:02:31.8]} 13. Bf3 {[%clk 0:02:18.2]} 13... Be6 {[%clk 0:02:24.6]}
14. Bxc6 {[%clk 0:02:08.2]} 14... Rac8 {[%clk 0:02:23.9]} 15. Bd4 {[%clk
0:01:52.2]} 15... Qa5 {[%clk 0:02:21.4]} 16. Bd5 {[%clk 0:01:43]} 16... Bxd5
{[%clk 0:02:11.8]} 17. Nxd5 {[%clk 0:01:35.5]} 17... Nxd5 {[%clk 0:02:09.9]} 18.
Bxg7 {[%clk 0:01:34.7]} 18... Kxg7 {[%clk 0:02:07]} 19. Qxd5 {[%clk 0:01:33.7]}
19... Qxd5 {[%clk 0:02:05.8]} 20. cxd5 {[%clk 0:01:33.7]} 20... Rfd8 {[%clk
0:02:00.3]} 21. Rfd1 {[%clk 0:01:31.3]} 21... Rc5 {[%clk 0:01:51.2]} 22. Kf1
{[%clk 0:01:22.4]} 22... Rdxd5 {[%clk 0:01:41.4]} 23. Rxd5 {[%clk 0:01:21.6]}
23... Rxd5 {[%clk 0:01:42.3]} 24. Ke2 {[%clk 0:01:16.4]} 24... Re5+ {[%clk
0:01:42.3]} 25. Kd3 {[%clk 0:01:16.2]} 25... Rd5+ {[%clk 0:01:42.3]} 26. Kc3
{[%clk 0:01:16.2]} 26... Rc5+ {[%clk 0:01:42.4]} 27. Kb3 {[%clk 0:01:14.7]}
27... Re5 {[%clk 0:01:41]} 28. Rc1 {[%clk 0:01:12.1]} 28... Rb5+ {[%clk
0:01:38.7]} 29. Ka3 {[%clk 0:01:09.7]} 29... Ra5+ {[%clk 0:01:38.4]} 30. Kb3
{[%clk 0:01:08.4]} 30... Rb5+ {[%clk 0:01:38.4]} 31. Kc2 {[%clk 0:01:08.2]}
31... Rc5+ {[%clk 0:01:36.7]} 32. Kb1 {[%clk 0:01:08.2]} 32... Re5 {[%clk
0:01:34.8]} 33. b3 {[%clk 0:01:03.3]} 33... g5 {[%clk 0:01:22.6]} 34. Kb2 {[%clk
0:01:02.3]} 34... g4 {[%clk 0:01:22.6]} 35. b4 {[%clk 0:00:50.2]} 35... h5
{[%clk 0:01:19.9]} 36. a4 {[%clk 0:00:47.9]} 36... f5 {[%clk 0:01:20]} 37. b5
{[%clk 0:00:47.2]} 37... f4 {[%clk 0:01:19]} 38. Kb3 {[%clk 0:00:35.6]} 38... h4
{[%clk 0:01:17.7]} 39. Rc4 {[%clk 0:00:31.3]} 39... Rf5 {[%clk 0:01:14.3]} 40.
Kb4 {[%clk 0:00:30.3]} 40... g3 {[%clk 0:00:38.7]} 41. fxg3 {[%clk 0:00:25.6]}
41... h3 {[%clk 0:00:36]} 42. gxh3 {[%clk 0:00:17.7]} 42... f3 {[%clk
0:00:35.9]} 43. Rc1 {[%clk 0:00:17.7]} 43... f2 {[%clk 0:00:35.3]} 44. Rf1
{[%clk 0:00:17.6]} 44... e5 {[%clk 0:00:35.9]} 45. Kc4 {[%clk 0:00:17.2]} 45...
e4 {[%clk 0:00:33.1]} 46. Kd4 {[%clk 0:00:17.4]} 46... Rf3 {[%clk 0:00:23.6]}
47. Kxe4 {[%clk 0:00:17.2]} 47... Ra3 {[%clk 0:00:23.2]} 48. Rxf2 {[%clk
0:00:17.3]} 48... Rxa4+ {[%clk 0:00:23.7]} 49. Kd5 {[%clk 0:00:16.3]} 49... Ra5
{[%clk 0:00:24]} 50. Kc6 {[%clk 0:00:16.2]} 50... Ra2 {[%clk 0:00:24.2]} 51.
Rxa2 {[%clk 0:00:15.2]} 1-0

[Event "Late-Titled-Tuesday-Blitz-February-27-2024"]
[Site "Chess.com"]
[Date "2024.02.27"]
[Round "10"]
[White "BabageldiAnnaberdiyev"]
[Black "Bkmzzzzz"]
[Result "1-0"]
[WhiteElo "2623"]
[BlackElo "2413"]
[TimeControl "180+1"]
[EndTime "15:56:09 PST"]
[Termination "BabageldiAnnaberdiyev won by resignation"]

1. e4 {[%clk 0:02:50.5]} 1... d6 {[%clk 0:02:59.8]} 2. d4 {[%clk 0:02:49.6]}
2... Nf6 {[%clk 0:03:00.4]} 3. Nc3 {[%clk 0:02:50.1]} 3... e5 {[%clk 0:03:01]}
4. Nf3 {[%clk 0:02:49.9]} 4... Nbd7 {[%clk 0:03:00.6]} 5. Bc4 {[%clk 0:02:48.2]}
5... Be7 {[%clk 0:03:01.2]} 6. O-O {[%clk 0:02:48.2]} 6... O-O {[%clk 0:03:01]}
7. h3 {[%clk 0:02:47.7]} 7... c6 {[%clk 0:03:01.3]} 8. a4 {[%clk 0:02:47.1]}
8... b6 {[%clk 0:03:01.4]} 9. Bg5 {[%clk 0:02:43.9]} 9... a6 {[%clk 0:03:00.7]}
10. Bxf6 {[%clk 0:02:36.5]} 10... Bxf6 {[%clk 0:02:59.1]} 11. d5 {[%clk
0:02:36.6]} 11... Bb7 {[%clk 0:02:37.5]} 12. dxc6 {[%clk 0:02:36.5]} 12... Bxc6
{[%clk 0:02:38.4]} 13. Bd5 {[%clk 0:02:36.5]} 13... Qc7 {[%clk 0:02:26.9]} 14.
Bxc6 {[%clk 0:02:34.9]} 14... Qxc6 {[%clk 0:02:27.8]} 15. Nd5 {[%clk 0:02:35.2]}
15... Bd8 {[%clk 0:02:27.4]} 16. c3 {[%clk 0:02:29.1]} 16... f5 {[%clk 0:02:08]}
17. exf5 {[%clk 0:02:26]} 17... Rxf5 {[%clk 0:02:08.9]} 18. Ne3 {[%clk 0:02:23]}
18... Rf7 {[%clk 0:02:03.2]} 19. Qd5 {[%clk 0:02:08.5]} 19... Rc8 {[%clk
0:01:44]} 20. Rfd1 {[%clk 0:02:01.4]} 20... Be7 {[%clk 0:01:17]} 21. Qxc6 {[%clk
0:01:54]} 21... Rxc6 {[%clk 0:01:16.6]} 22. Nd5 {[%clk 0:01:54.7]} 22... a5
{[%clk 0:01:13.6]} 23. Nd2 {[%clk 0:01:48.6]} 23... Nf6 {[%clk 0:01:03.5]} 24.
Nf1 {[%clk 0:01:49.1]} 24... Ne4 {[%clk 0:00:43.1]} 25. f3 {[%clk 0:01:47.2]}
25... Nc5 {[%clk 0:00:42.9]} 26. b4 {[%clk 0:01:38.1]} 26... Ne6 {[%clk
0:00:32.2]} 27. b5 {[%clk 0:01:36.8]} 27... Rc5 {[%clk 0:00:23]} 28. Nfe3 {[%clk
0:01:30.1]} 28... Bd8 {[%clk 0:00:20.3]} 29. Kf2 {[%clk 0:01:20]} 29... Rd7
{[%clk 0:00:20]} 30. Rd3 {[%clk 0:01:12.1]} 30... Kf7 {[%clk 0:00:20.4]} 31.
Rad1 {[%clk 0:01:10.8]} 31... g6 {[%clk 0:00:20.7]} 32. g3 {[%clk 0:01:05]}
32... Rc8 {[%clk 0:00:20.5]} 33. h4 {[%clk 0:01:05.2]} 33... Nc5 {[%clk
0:00:20.5]} 34. c4 {[%clk 0:01:00.3]} 34... Nxd3+ {[%clk 0:00:20.1]} 35. Rxd3
{[%clk 0:01:01.2]} 35... Ke6 {[%clk 0:00:20.1]} 36. Nc3 {[%clk 0:00:46.9]} 36...
Rc5 {[%clk 0:00:17.7]} 37. Ne4 {[%clk 0:00:46.9]} 37... Rc8 {[%clk 0:00:16]} 38.
Ke2 {[%clk 0:00:45.9]} 38... Be7 {[%clk 0:00:16.2]} 39. Nd5 {[%clk 0:00:44.7]}
39... Rxc4 {[%clk 0:00:14.5]} 40. Nxb6 {[%clk 0:00:44.5]} 40... Rc2+ {[%clk
0:00:14.3]} 41. Ke3 {[%clk 0:00:44.1]} 41... Rb7 {[%clk 0:00:14.3]} 42. Nd5
{[%clk 0:00:42.8]} 42... Bf8 {[%clk 0:00:14.6]} 43. Ng5+ {[%clk 0:00:42.8]}
43... Kd7 {[%clk 0:00:13.1]} 44. Nf6+ {[%clk 0:00:42.4]} 44... Kd8 {[%clk
0:00:11.1]} 45. Nfe4 {[%clk 0:00:28.1]} 45... Kc7 {[%clk 0:00:09.9]} 46. Nxh7
{[%clk 0:00:27.1]} 46... Be7 {[%clk 0:00:09.6]} 47. Nhg5 {[%clk 0:00:27.5]}
47... Kd7 {[%clk 0:00:09.3]} 48. Nf7 {[%clk 0:00:26.5]} 48... Rc4 {[%clk
0:00:07]} 49. Nxe5+ {[%clk 0:00:27]} 1-0

[Event "Late-Titled-Tuesday-Blitz-February-27-2024"]
[Site "Chess.com"]
[Date "2024.02.27"]
[Round "10"]
[White "Njal28"]
[Black "FairChess_on_YouTube"]
[Result "1-0"]
[WhiteElo "3053"]
[BlackElo "3100"]
[TimeControl "180+1"]
[EndTime "15:56:10 PST"]
[Termination "Njal28 won by checkmate"]

1. d4 {[%clk 0:03:00.9]} 1... d5 {[%clk 0:02:59.8]} 2. Nf3 {[%clk 0:03:00]} 2...
Nf6 {[%clk 0:02:59.5]} 3. c4 {[%clk 0:03:00.2]} 3... dxc4 {[%clk 0:02:59.8]} 4.
e3 {[%clk 0:02:59]} 4... e6 {[%clk 0:02:59.9]} 5. Bxc4 {[%clk 0:02:58.9]} 5...
c5 {[%clk 0:03:00.5]} 6. O-O {[%clk 0:02:59]} 6... a6 {[%clk 0:03:01.1]} 7. Re1
{[%clk 0:02:58.4]} 7... Nc6 {[%clk 0:02:58.1]} 8. Bd3 {[%clk 0:02:58.3]} 8...
Be7 {[%clk 0:02:47.2]} 9. dxc5 {[%clk 0:02:58.1]} 9... Bxc5 {[%clk 0:02:43.2]}
10. a3 {[%clk 0:02:58.4]} 10... O-O {[%clk 0:02:41.8]} 11. b4 {[%clk 0:02:58.6]}
11... Bd6 {[%clk 0:02:31.1]} 12. Bb2 {[%clk 0:02:58.7]} 12... Qe7 {[%clk
0:02:30.9]} 13. Nbd2 {[%clk 0:02:57.7]} 13... e5 {[%clk 0:02:28.8]} 14. Ne4
{[%clk 0:02:37.4]} 14... Rd8 {[%clk 0:02:20.1]} 15. Qc2 {[%clk 0:02:35]} 15...
h6 {[%clk 0:02:18.1]} 16. Ng3 {[%clk 0:02:32.3]} 16... Bc7 {[%clk 0:02:10.3]}
17. Rad1 {[%clk 0:02:24]} 17... Be6 {[%clk 0:01:58.4]} 18. Bf5 {[%clk
0:02:03.1]} 18... Rac8 {[%clk 0:01:54.3]} 19. Qb1 {[%clk 0:02:01.2]} 19... Bxf5
{[%clk 0:01:46.9]} 20. Qxf5 {[%clk 0:01:55.1]} 20... Rxd1 {[%clk 0:01:43.5]} 21.
Rxd1 {[%clk 0:01:56]} 21... Rd8 {[%clk 0:01:43.3]} 22. Rc1 {[%clk 0:01:56.5]}
22... Qd7 {[%clk 0:01:35.3]} 23. Qxd7 {[%clk 0:01:40.4]} 23... Nxd7 {[%clk
0:01:32.5]} 24. Nf5 {[%clk 0:01:26.4]} 24... Nb6 {[%clk 0:01:13.7]} 25. g4
{[%clk 0:01:23.5]} 25... f6 {[%clk 0:01:12.9]} 26. h4 {[%clk 0:01:12.3]} 26...
Na4 {[%clk 0:01:01.4]} 27. Ba1 {[%clk 0:01:11.2]} 27... Rd3 {[%clk 0:00:59.6]}
28. g5 {[%clk 0:00:53.6]} 28... hxg5 {[%clk 0:00:53.3]} 29. hxg5 {[%clk
0:00:54.5]} 29... Kf7 {[%clk 0:00:42.4]} 30. Kg2 {[%clk 0:00:37]} 30... Rxa3
{[%clk 0:00:41.3]} 31. Rd1 {[%clk 0:00:34.3]} 31... Nxb4 {[%clk 0:00:32.5]} 32.
g6+ {[%clk 0:00:18.5]} 32... Kxg6 {[%clk 0:00:26.3]} 33. N3h4+ {[%clk 0:00:19]}
33... Kf7 {[%clk 0:00:14]} 34. Rd7+ {[%clk 0:00:19.9]} 34... Ke6 {[%clk
0:00:09.9]} 35. Rxc7 {[%clk 0:00:20.4]} 35... Nd5 {[%clk 0:00:06.5]} 36. Nxg7+
{[%clk 0:00:16.3]} 36... Kd6 {[%clk 0:00:06]} 37. Rc1 {[%clk 0:00:17.2]} 37...
Nxe3+ {[%clk 0:00:02.4]} 38. fxe3 {[%clk 0:00:16.9]} 38... Nc5 {[%clk 0:00:03]}
39. Nhf5+ {[%clk 0:00:15.8]} 39... Kd5 {[%clk 0:00:03.3]} 40. Kf3 {[%clk
0:00:14.1]} 40... Nb3 {[%clk 0:00:02.8]} 41. Rd1+ {[%clk 0:00:14.2]} 41... Kc5
{[%clk 0:00:03]} 42. Bc3 {[%clk 0:00:13.4]} 42... a5 {[%clk 0:00:02.5]} 43. Be1
{[%clk 0:00:11.5]} 43... b5 {[%clk 0:00:02.7]} 44. Ne6+ {[%clk 0:00:11.9]} 44...
Kc4 {[%clk 0:00:02.8]} 45. Nd6# {[%clk 0:00:12.5]} 1-0